[Event "Titled Tuesday Blitz May 30 Early 2023"]
[White "Alexikov, Alexander"]
[Black "Goltsev, Dmitry"]
[WhiteFideId "14103958"]
[BlackFideId "24176710"]
[WhiteElo "2186"]
[BlackElo "2356"]
[Result "1-0"]
[Round "01"]
[TimeControl "180+2"]
[Date "2023.05.30"]
[WhiteClock "0:00:42"]
[BlackClock "0:00:40"]

1. e4 {[%clk 0:02:57]}  e6 {[%clk 0:02:59]} 2. d4 {[%clk 0:02:56]}  d5 {[%clk 0:03:00]} 3. Nc3 {[%clk 0:02:55]}  c5 {[%clk 0:03:00]} 4. exd5 {[%clk 0:02:53]}  exd5 {[%clk 0:03:01]} 5. Nf3 {[%clk 0:02:52]}  Nf6 {[%clk 0:03:01]} 6. Bb5+ {[%clk 0:02:51]}  Nc6 {[%clk 0:03:01]} 7. O-O {[%clk 0:02:39]}  Be7 {[%clk 0:03:01]} 8. dxc5 {[%clk 0:02:37]}  Bxc5 {[%clk 0:03:02]} 9. Re1+ {[%clk 0:02:35]}  Be6 {[%clk 0:03:02]} 10. Bg5 {[%clk 0:02:27]}  O-O {[%clk 0:03:02]} 11. Qd2 {[%clk 0:02:08]}  Bg4 {[%clk 0:02:56]} 12. Bxc6 {[%clk 0:02:04]}  bxc6 {[%clk 0:02:53]} 13. Ne5 {[%clk 0:02:02]}  Bd7 {[%clk 0:02:44]} 14. Nxd7 {[%clk 0:01:54]}  Qxd7 {[%clk 0:02:42]} 15. Bxf6 {[%clk 0:01:54]}  gxf6 {[%clk 0:02:43]} 16. Ne4 {[%clk 0:01:52]}  Be7 {[%clk 0:02:40]} 17. Ng3 {[%clk 0:01:48]}  Kh8 {[%clk 0:02:40]} 18. Qf4 {[%clk 0:01:35]}  Rg8 {[%clk 0:02:39]} 19. c3 {[%clk 0:01:30]}  Rg4 {[%clk 0:02:37]} 20. Rxe7 {[%clk 0:01:25]}  Qxe7 {[%clk 0:02:31]} 21. Qxg4 {[%clk 0:01:25]}  Re8 {[%clk 0:02:31]} 22. h3 {[%clk 0:01:23]}  Qe5 {[%clk 0:02:31]} 23. Qf3 {[%clk 0:01:22]}  Rb8 {[%clk 0:02:29]} 24. b3 {[%clk 0:01:19]}  a5 {[%clk 0:02:29]} 25. Rd1 {[%clk 0:01:17]}  a4 {[%clk 0:02:28]} 26. b4 {[%clk 0:01:16]}  a3 {[%clk 0:02:24]} 27. Qe3 {[%clk 0:01:14]}  Qc7 {[%clk 0:02:14]} 28. Rd4 {[%clk 0:01:11]}  c5 {[%clk 0:02:10]} 29. bxc5 {[%clk 0:01:09]}  Qxc5 {[%clk 0:02:07]} 30. Ra4 {[%clk 0:01:01]}  Qd6 {[%clk 0:02:05]} 31. Rd4 {[%clk 0:00:58]}  f5 {[%clk 0:01:31]} 32. Qf3 {[%clk 0:00:54]}  Rb1+ {[%clk 0:01:12]} 33. Kh2 {[%clk 0:00:53]}  Rb2 {[%clk 0:01:13]} 34. Rxd5 {[%clk 0:00:48]}  Qb6 {[%clk 0:01:00]} 35. Rxf5 {[%clk 0:00:47]}  Rxa2 {[%clk 0:00:50]} 36. Rxf7 {[%clk 0:00:46]}  Qd6 {[%clk 0:00:41]} 37. Qa8+ {[%clk 0:00:43]}  Qd8 {[%clk 0:00:40]} 38. Qxd8# {[%clk 0:00:42]} 1-0


[Site "https://www.chess.com"]

[Event "Titled Tuesday Blitz May 30 Early 2023"]
[White "el_sporco"]
[Black "Itgelt, Khuyagtsogt"]
[BlackFideId "4902912"]
[WhiteElo "2403"]
[BlackElo "2227"]
[Result "1/2-1/2"]
[Round "01"]
[TimeControl "180+2"]
[Date "2023.05.30"]
[WhiteClock "0:00:07"]
[BlackClock "0:00:13"]

1. e4 {[%clk 0:02:55]}  e6 {[%clk 0:02:59]} 2. d4 {[%clk 0:02:53]}  d5 {[%clk 0:02:58]} 3. Nc3 {[%clk 0:02:54]}  Bb4 {[%clk 0:02:58]} 4. e5 {[%clk 0:02:54]}  c5 {[%clk 0:02:58]} 5. a3 {[%clk 0:02:53]}  Bxc3+ {[%clk 0:02:58]} 6. bxc3 {[%clk 0:02:54]}  Qa5 {[%clk 0:02:59]} 7. Qd2 {[%clk 0:02:53]}  Ne7 {[%clk 0:02:50]} 8. a4 {[%clk 0:02:51]}  Nbc6 {[%clk 0:02:48]} 9. Nf3 {[%clk 0:02:50]}  Bd7 {[%clk 0:02:45]} 10. Ba3 {[%clk 0:02:45]}  cxd4 {[%clk 0:02:44]} 11. cxd4 {[%clk 0:02:45]}  Qxd2+ {[%clk 0:02:43]} 12. Kxd2 {[%clk 0:02:45]}  Nf5 {[%clk 0:02:44]} 13. Bb2 {[%clk 0:02:38]}  Na5 {[%clk 0:02:42]} 14. Bd3 {[%clk 0:02:37]}  Nc4+ {[%clk 0:02:27]} 15. Kc1 {[%clk 0:02:03]}  Ne7 {[%clk 0:02:13]} 16. Nd2 {[%clk 0:02:01]}  Nxb2 {[%clk 0:02:08]} 17. Kxb2 {[%clk 0:02:01]}  Nc6 {[%clk 0:02:02]} 18. Nb3 {[%clk 0:01:57]}  Ke7 {[%clk 0:02:03]} 19. Bb5 {[%clk 0:01:55]}  Nd8 {[%clk 0:01:59]} 20. Nc5 {[%clk 0:01:50]}  Bc8 {[%clk 0:01:54]} 21. a5 {[%clk 0:01:46]}  Rb8 {[%clk 0:01:50]} 22. Kc1 {[%clk 0:01:40]}  a6 {[%clk 0:01:48]} 23. Ba4 {[%clk 0:01:16]}  f6 {[%clk 0:01:46]} 24. exf6+ {[%clk 0:01:11]}  gxf6 {[%clk 0:01:47]} 25. Rb1 {[%clk 0:01:09]}  Rg8 {[%clk 0:01:37]} 26. g3 {[%clk 0:01:09]}  Rg4 {[%clk 0:01:37]} 27. c3 {[%clk 0:01:09]}  e5 {[%clk 0:01:35]} 28. f3 {[%clk 0:01:08]}  Rg7 {[%clk 0:01:31]} 29. Re1 {[%clk 0:01:09]}  Bf5 {[%clk 0:01:25]} 30. Rb6 {[%clk 0:01:08]}  Nf7 {[%clk 0:01:21]} 31. Nxa6 {[%clk 0:01:03]}  Ra8 {[%clk 0:01:21]} 32. Rxb7+ {[%clk 0:01:03]}  Kf8 {[%clk 0:01:21]} 33. Rb6 {[%clk 0:01:00]}  Rg6 {[%clk 0:01:08]} 34. Bc6 {[%clk 0:01:00]}  Ra7 {[%clk 0:01:07]} 35. Kb2 {[%clk 0:00:46]}  Be6 {[%clk 0:01:00]} 36. Ra1 {[%clk 0:00:45]}  Nd6 {[%clk 0:01:00]} 37. Bxd5 {[%clk 0:00:40]}  Bxd5 {[%clk 0:00:55]} 38. Rxd6 {[%clk 0:00:40]}  Bxf3 {[%clk 0:00:56]} 39. dxe5 {[%clk 0:00:33]}  fxe5 {[%clk 0:00:57]} 40. Rxg6 {[%clk 0:00:34]}  hxg6 {[%clk 0:00:57]} 41. Nb4 {[%clk 0:00:33]}  Ke7 {[%clk 0:00:46]} 42. a6 {[%clk 0:00:33]}  Kd6 {[%clk 0:00:45]} 43. Re1 {[%clk 0:00:31]}  g5 {[%clk 0:00:38]} 44. c4 {[%clk 0:00:32]}  e4 {[%clk 0:00:34]} 45. Kc3 {[%clk 0:00:32]}  Kc5 {[%clk 0:00:30]} 46. Re3 {[%clk 0:00:29]}  g4 {[%clk 0:00:29]} 47. Re1 {[%clk 0:00:26]}  Rh7 {[%clk 0:00:30]} 48. Ra1 {[%clk 0:00:23]}  Kb6 {[%clk 0:00:29]} 49. a7 {[%clk 0:00:20]}  Rxa7 {[%clk 0:00:29]} 50. Nd5+ {[%clk 0:00:20]}  Kb7 {[%clk 0:00:28]} 51. Rxa7+ {[%clk 0:00:20]}  Kxa7 {[%clk 0:00:29]} 52. Kd4 {[%clk 0:00:21]}  Kb7 {[%clk 0:00:27]} 53. Ne3 {[%clk 0:00:20]}  Kc6 {[%clk 0:00:28]} 54. Ke5 {[%clk 0:00:20]}  Kc5 {[%clk 0:00:27]} 55. Kf4 {[%clk 0:00:20]}  Kd4 {[%clk 0:00:27]} 56. Nf5+ {[%clk 0:00:07]}  Kxc4 {[%clk 0:00:26]} 57. Nd6+ {[%clk 0:00:08]}  Kd5 {[%clk 0:00:18]} 58. Nf5 {[%clk 0:00:06]}  Kc4 {[%clk 0:00:16]} 59. Ne3+ {[%clk 0:00:07]}  Kd3 {[%clk 0:00:16]} 60. Nf5 {[%clk 0:00:08]}  Bd1 {[%clk 0:00:12]} 61. Ne3 {[%clk 0:00:07]}  Bf3 {[%clk 0:00:13]} 62. Nd5 {[%clk 0:00:07]}  Kd4 {[%clk 0:00:12]} 63. Ne3 {[%clk 0:00:07]}  Kd3 {[%clk 0:00:13]} 1/2-1/2


[Site "https://www.chess.com"]

[Event "Titled Tuesday Blitz May 30 Early 2023"]
[White "Prohaszka, Peter"]
[Black "Dwilewicz, Katarzyna"]
[WhiteFideId "726265"]
[BlackFideId "1148486"]
[WhiteElo "2626"]
[BlackElo "2065"]
[Result "1-0"]
[Round "01"]
[TimeControl "180+2"]
[Date "2023.05.30"]
[WhiteClock "0:01:36"]
[BlackClock "0:00:27"]

1. d4 {[%clk 0:02:57]}  Nf6 {[%clk 0:02:58]} 2. c3 {[%clk 0:02:55]}  g6 {[%clk 0:02:57]} 3. Bg5 {[%clk 0:02:56]}  Bg7 {[%clk 0:02:57]} 4. Nf3 {[%clk 0:02:55]}  d5 {[%clk 0:02:56]} 5. e3 {[%clk 0:02:52]}  Bf5 {[%clk 0:02:51]} 6. Qb3 {[%clk 0:02:47]}  b6 {[%clk 0:02:48]} 7. c4 {[%clk 0:02:47]}  dxc4 {[%clk 0:02:31]} 8. Bxc4 {[%clk 0:02:46]}  O-O {[%clk 0:02:31]} 9. Nc3 {[%clk 0:02:46]}  Nc6 {[%clk 0:02:29]} 10. Ne5 {[%clk 0:02:33]}  Nxe5 {[%clk 0:01:59]} 11. dxe5 {[%clk 0:02:33]}  Nd7 {[%clk 0:01:59]} 12. Rd1 {[%clk 0:01:38]}  Bxe5 {[%clk 0:01:42]} 13. e4 {[%clk 0:01:38]}  Bxc3+ {[%clk 0:01:18]} 14. Qxc3 {[%clk 0:01:37]}  Bxe4 {[%clk 0:01:18]} 15. Bh6 {[%clk 0:01:37]}  e5 {[%clk 0:00:57]} 16. Rxd7 {[%clk 0:01:37]}  Qxd7 {[%clk 0:00:27]} 17. Qxe5 {[%clk 0:01:36]} 1-0


[Site "https://www.chess.com"]

[Event "Titled Tuesday Blitz May 30 Early 2023"]
[White "KorolDimitriy75"]
[Black "Ashraf, Artin"]
[BlackFideId "22514805"]
[WhiteElo "2400"]
[BlackElo "2188"]
[Result "1-0"]
[Round "01"]
[TimeControl "180+2"]
[Date "2023.05.30"]
[WhiteClock "0:00:42"]
[BlackClock "0:00:00"]

1. d4 {[%clk 0:02:59]}  Nf6 {[%clk 0:02:52]} 2. c4 {[%clk 0:02:58]}  e6 {[%clk 0:02:32]} 3. Nc3 {[%clk 0:02:58]}  d5 {[%clk 0:02:31]} 4. Bg5 {[%clk 0:02:58]}  Be7 {[%clk 0:02:30]} 5. cxd5 {[%clk 0:02:58]}  exd5 {[%clk 0:02:29]} 6. e3 {[%clk 0:02:58]}  c6 {[%clk 0:02:27]} 7. Bd3 {[%clk 0:02:57]}  O-O {[%clk 0:02:27]} 8. Qc2 {[%clk 0:02:57]}  h6 {[%clk 0:02:26]} 9. Bh4 {[%clk 0:02:57]}  Ne8 {[%clk 0:02:24]} 10. Bg3 {[%clk 0:02:55]}  Nd6 {[%clk 0:02:19]} 11. Nge2 {[%clk 0:02:55]}  a5 {[%clk 0:02:19]} 12. O-O {[%clk 0:02:52]}  Na6 {[%clk 0:02:19]} 13. a3 {[%clk 0:02:52]}  Re8 {[%clk 0:02:13]} 14. f3 {[%clk 0:02:46]}  b5 {[%clk 0:02:03]} 15. Rad1 {[%clk 0:02:32]}  Nc4 {[%clk 0:02:00]} 16. Bf2 {[%clk 0:02:30]}  Bg5 {[%clk 0:01:25]} 17. Bxc4 {[%clk 0:02:17]}  bxc4 {[%clk 0:01:18]} 18. e4 {[%clk 0:02:17]}  Rb8 {[%clk 0:01:15]} 19. e5 {[%clk 0:02:08]}  Qb6 {[%clk 0:01:13]} 20. f4 {[%clk 0:02:07]}  Be7 {[%clk 0:01:11]} 21. Rd2 {[%clk 0:02:06]}  Qb3 {[%clk 0:01:10]} 22. Qb1 {[%clk 0:01:46]}  f5 {[%clk 0:00:50]} 23. Be3 {[%clk 0:01:12]}  Rb7 {[%clk 0:00:35]} 24. g4 {[%clk 0:01:06]}  Rf8 {[%clk 0:00:29]} 25. Ng3 {[%clk 0:01:05]}  g6 {[%clk 0:00:26]} 26. Kh1 {[%clk 0:01:01]}  Kh7 {[%clk 0:00:24]} 27. gxf5 {[%clk 0:00:58]}  Bxf5 {[%clk 0:00:21]} 28. Nxf5 {[%clk 0:00:58]}  Rxf5 {[%clk 0:00:21]} 29. Rg1 {[%clk 0:00:59]}  Nc7 {[%clk 0:00:05]} 30. Rdg2 {[%clk 0:00:59]}  Qxc3 {[%clk 0:00:05]} 31. Rxg6 {[%clk 0:00:45]}  h5 {[%clk 0:00:00]} 32. Qxf5 {[%clk 0:00:42]} 1-0


[Site "https://www.chess.com"]

[Event "Titled Tuesday Blitz May 30 Early 2023"]
[White "Federzoni, Enzo"]
[Black "Harikrishnan.A.Ra"]
[WhiteFideId "2173301"]
[BlackFideId "5081483"]
[WhiteElo "2039"]
[BlackElo "2271"]
[Result "1-0"]
[Round "01"]
[TimeControl "180+2"]
[Date "2023.05.30"]
[WhiteClock "0:00:04"]
[BlackClock "0:00:03"]

1. Nf3 {[%clk 0:03:00]}  d5 {[%clk 0:02:59]} 2. g3 {[%clk 0:02:59]}  g6 {[%clk 0:02:57]} 3. Bg2 {[%clk 0:02:58]}  Bg7 {[%clk 0:02:58]} 4. d4 {[%clk 0:02:59]}  Nf6 {[%clk 0:02:56]} 5. O-O {[%clk 0:02:58]}  c6 {[%clk 0:02:56]} 6. c4 {[%clk 0:02:59]}  dxc4 {[%clk 0:02:57]} 7. Na3 {[%clk 0:02:58]}  b5 {[%clk 0:02:47]} 8. Ne5 {[%clk 0:02:54]}  Nd5 {[%clk 0:02:41]} 9. e4 {[%clk 0:02:44]}  Nb6 {[%clk 0:02:23]} 10. f4 {[%clk 0:02:38]}  O-O {[%clk 0:02:14]} 11. Be3 {[%clk 0:02:37]}  Bb7 {[%clk 0:01:59]} 12. Qe2 {[%clk 0:02:36]}  a5 {[%clk 0:01:55]} 13. Rad1 {[%clk 0:02:33]}  N8d7 {[%clk 0:01:43]} 14. Nxd7 {[%clk 0:02:29]}  Nxd7 {[%clk 0:01:42]} 15. d5 {[%clk 0:02:29]}  cxd5 {[%clk 0:01:40]} 16. exd5 {[%clk 0:02:29]}  Ba6 {[%clk 0:01:39]} 17. d6 {[%clk 0:02:25]}  Rc8 {[%clk 0:01:26]} 18. Nc2 {[%clk 0:02:16]}  b4 {[%clk 0:01:19]} 19. Bd4 {[%clk 0:02:14]}  e6 {[%clk 0:01:11]} 20. Bxg7 {[%clk 0:02:12]}  Kxg7 {[%clk 0:01:12]} 21. Nd4 {[%clk 0:02:10]}  Qb6 {[%clk 0:01:10]} 22. Qf2 {[%clk 0:02:06]}  Nc5 {[%clk 0:01:03]} 23. f5 {[%clk 0:02:01]}  exf5 {[%clk 0:01:01]} 24. Nxf5+ {[%clk 0:01:57]}  gxf5 {[%clk 0:00:56]} 25. Qd4+ {[%clk 0:01:56]}  f6 {[%clk 0:00:35]} 26. Rxf5 {[%clk 0:01:45]}  Nd7 {[%clk 0:00:36]} 27. Qxb6 {[%clk 0:01:30]}  Nxb6 {[%clk 0:00:37]} 28. Rxa5 {[%clk 0:01:29]}  c3 {[%clk 0:00:14]} 29. bxc3 {[%clk 0:01:22]}  bxc3 {[%clk 0:00:15]} 30. Rxa6 {[%clk 0:01:21]}  Nc4 {[%clk 0:00:14]} 31. Rc1 {[%clk 0:01:13]}  Ne5 {[%clk 0:00:11]} 32. Ra3 {[%clk 0:01:08]}  c2 {[%clk 0:00:11]} 33. Be4 {[%clk 0:01:09]}  Rc4 {[%clk 0:00:12]} 34. Ra7+ {[%clk 0:01:04]}  Nf7 {[%clk 0:00:05]} 35. Bxc2 {[%clk 0:01:01]}  Kh8 {[%clk 0:00:01]} 36. Rd1 {[%clk 0:00:37]}  Ng5 {[%clk 0:00:02]} 37. Bb3 {[%clk 0:00:14]}  Re4 {[%clk 0:00:02]} 38. d7 {[%clk 0:00:14]}  Rd8 {[%clk 0:00:02]} 39. Rc7 {[%clk 0:00:11]}  Re2 {[%clk 0:00:02]} 40. Bd5 {[%clk 0:00:09]}  Nh3+ {[%clk 0:00:02]} 41. Kf1 {[%clk 0:00:06]}  Re7 {[%clk 0:00:02]} 42. Bg2 {[%clk 0:00:03]}  Ng5 {[%clk 0:00:02]} 43. Rc8 {[%clk 0:00:04]}  Nf7 {[%clk 0:00:03]} 44. Rxd8+ {[%clk 0:00:04]}  Nxd8 {[%clk 0:00:04]} 45. a4 {[%clk 0:00:03]}  Re5 {[%clk 0:00:04]} 46. Re1 {[%clk 0:00:02]}  Kg7 {[%clk 0:00:02]} 47. Rxe5 {[%clk 0:00:02]}  fxe5 {[%clk 0:00:03]} 48. a5 {[%clk 0:00:03]}  e4 {[%clk 0:00:03]} 49. Bxe4 {[%clk 0:00:03]}  Kf6 {[%clk 0:00:03]} 50. a6 {[%clk 0:00:03]}  Ke5 {[%clk 0:00:04]} 51. a7 {[%clk 0:00:04]}  Kxe4 {[%clk 0:00:03]} 52. a8=Q+ {[%clk 0:00:04]} 1-0


[Site "https://www.chess.com"]

[Event "Titled Tuesday Blitz May 30 Early 2023"]
[White "Garagulya, Konstantin"]
[Black "Kucuksari, Kaan"]
[WhiteFideId "4128931"]
[BlackFideId "6380166"]
[WhiteElo "2329"]
[BlackElo "2364"]
[Result "0-1"]
[Round "01"]
[TimeControl "180+2"]
[Date "2023.05.30"]
[WhiteClock "0:00:00"]
[BlackClock "0:00:09"]

1. d4 {[%clk 0:02:35]}  f5 {[%clk 0:02:56]} 2. g3 {[%clk 0:02:35]}  Nf6 {[%clk 0:02:56]} 3. Bg2 {[%clk 0:02:36]}  e6 {[%clk 0:02:56]} 4. Nh3 {[%clk 0:02:36]}  Be7 {[%clk 0:02:55]} 5. c4 {[%clk 0:02:37]}  O-O {[%clk 0:02:55]} 6. Nc3 {[%clk 0:02:37]}  d6 {[%clk 0:02:55]} 7. O-O {[%clk 0:02:36]}  Qe8 {[%clk 0:02:55]} 8. b3 {[%clk 0:02:29]}  Nc6 {[%clk 0:02:43]} 9. Bb2 {[%clk 0:02:25]}  Kh8 {[%clk 0:02:24]} 10. d5 {[%clk 0:02:03]}  Nd8 {[%clk 0:02:09]} 11. dxe6 {[%clk 0:02:01]}  Nxe6 {[%clk 0:02:09]} 12. Nd5 {[%clk 0:02:00]}  Nxd5 {[%clk 0:02:07]} 13. cxd5 {[%clk 0:01:58]}  Nc5 {[%clk 0:02:08]} 14. Nf4 {[%clk 0:01:58]}  a5 {[%clk 0:01:59]} 15. e3 {[%clk 0:01:50]}  Bf6 {[%clk 0:01:58]} 16. Bxf6 {[%clk 0:01:46]}  Rxf6 {[%clk 0:01:59]} 17. Qc2 {[%clk 0:01:42]}  Bd7 {[%clk 0:01:57]} 18. a3 {[%clk 0:01:38]}  a4 {[%clk 0:01:30]} 19. b4 {[%clk 0:01:38]}  Nb3 {[%clk 0:01:31]} 20. Rab1 {[%clk 0:01:34]}  Rc8 {[%clk 0:01:31]} 21. Qb2 {[%clk 0:01:10]}  c5 {[%clk 0:01:19]} 22. dxc6 {[%clk 0:01:09]}  Bxc6 {[%clk 0:01:18]} 23. Nd5 {[%clk 0:01:05]}  Rh6 {[%clk 0:01:15]} 24. h4 {[%clk 0:00:58]}  Qe5 {[%clk 0:01:12]} 25. Rfd1 {[%clk 0:00:55]}  Re6 {[%clk 0:01:10]} 26. Nf4 {[%clk 0:00:50]}  Ree8 {[%clk 0:01:06]} 27. Bd5 {[%clk 0:00:42]}  Bxd5 {[%clk 0:00:58]} 28. Rxd5 {[%clk 0:00:43]}  Qe4 {[%clk 0:00:38]} 29. Nh5 {[%clk 0:00:19]}  Re7 {[%clk 0:00:38]} 30. Rbd1 {[%clk 0:00:16]}  Rc2 {[%clk 0:00:33]} 31. Qb1 {[%clk 0:00:16]}  h6 {[%clk 0:00:15]} 32. Rxd6 {[%clk 0:00:16]}  Rec7 {[%clk 0:00:15]} 33. Rf1 {[%clk 0:00:12]}  Nd2 {[%clk 0:00:12]} 34. Rxd2 {[%clk 0:00:09]}  Rxd2 {[%clk 0:00:13]} 35. Qa1 {[%clk 0:00:08]}  Kh7 {[%clk 0:00:10]} 36. b5 {[%clk 0:00:06]}  b6 {[%clk 0:00:09]} 37. Nf4 {[%clk 0:00:03]}  Rcd7 {[%clk 0:00:09]} 38. h5 {[%clk 0:00:03]}  Qc2 {[%clk 0:00:07]} 39. Qe1 {[%clk 0:00:02]}  Rd1 {[%clk 0:00:07]} 40. Qe2 {[%clk 0:00:01]}  Qxe2 {[%clk 0:00:07]} 41. Nxe2 {[%clk 0:00:02]}  Rxf1+ {[%clk 0:00:07]} 42. Kxf1 {[%clk 0:00:03]}  Rd3 {[%clk 0:00:08]} 43. Nd4 {[%clk 0:00:02]}  Rxa3 {[%clk 0:00:09]} 44. Nxf5 {[%clk 0:00:00]}  Rb3 {[%clk 0:00:09]} 0-1


[Site "https://www.chess.com"]

[Event "Titled Tuesday Blitz May 30 Early 2023"]
[White "Shtompel, Yuriy"]
[Black "Mendez Fortes, Eduardo Jesus"]
[WhiteFideId "14168278"]
[BlackFideId "3502376"]
[WhiteElo "1844"]
[BlackElo "2307"]
[Result "0-1"]
[Round "01"]
[TimeControl "180+2"]
[Date "2023.05.30"]
[WhiteClock "0:00:02"]
[BlackClock "0:00:19"]

1. Nf3 {[%clk 0:02:57]}  d5 {[%clk 0:02:59]} 2. g3 {[%clk 0:02:58]}  Nf6 {[%clk 0:02:59]} 3. Bg2 {[%clk 0:02:55]}  e6 {[%clk 0:03:00]} 4. O-O {[%clk 0:02:55]}  Be7 {[%clk 0:02:59]} 5. d3 {[%clk 0:02:56]}  O-O {[%clk 0:02:59]} 6. Nbd2 {[%clk 0:02:56]}  c5 {[%clk 0:02:59]} 7. e4 {[%clk 0:02:56]}  Nc6 {[%clk 0:02:59]} 8. c3 {[%clk 0:02:53]}  b5 {[%clk 0:02:59]} 9. Re1 {[%clk 0:02:53]}  Bb7 {[%clk 0:02:59]} 10. exd5 {[%clk 0:02:47]}  Nxd5 {[%clk 0:02:58]} 11. d4 {[%clk 0:02:46]}  cxd4 {[%clk 0:02:58]} 12. Nxd4 {[%clk 0:02:45]}  Nxd4 {[%clk 0:02:58]} 13. cxd4 {[%clk 0:02:46]}  a6 {[%clk 0:02:57]} 14. Ne4 {[%clk 0:02:44]}  Rc8 {[%clk 0:02:56]} 15. Bd2 {[%clk 0:02:38]}  Qd7 {[%clk 0:02:52]} 16. Rc1 {[%clk 0:02:28]}  Rxc1 {[%clk 0:02:51]} 17. Qxc1 {[%clk 0:02:28]}  Rc8 {[%clk 0:02:50]} 18. Qb1 {[%clk 0:02:27]}  Nb6 {[%clk 0:02:46]} 19. Qd3 {[%clk 0:02:19]}  Bd5 {[%clk 0:02:36]} 20. b3 {[%clk 0:02:14]}  Qb7 {[%clk 0:02:33]} 21. Ba5 {[%clk 0:02:01]}  Nd7 {[%clk 0:02:05]} 22. Bf3 {[%clk 0:01:40]}  b4 {[%clk 0:01:52]} 23. Kg2 {[%clk 0:01:09]}  f5 {[%clk 0:01:36]} 24. Nd2 {[%clk 0:01:06]}  Rc3 {[%clk 0:01:36]} 25. Qe2 {[%clk 0:00:58]}  Rxf3 {[%clk 0:01:18]} 26. Nxf3 {[%clk 0:00:56]}  Nf8 {[%clk 0:01:18]} 27. Rd1 {[%clk 0:00:46]}  g5 {[%clk 0:01:14]} 28. Rc1 {[%clk 0:00:08]}  g4 {[%clk 0:01:13]} 29. Kg1 {[%clk 0:00:06]}  Bxf3 {[%clk 0:01:10]} 30. Qd2 {[%clk 0:00:06]}  Bh1 {[%clk 0:00:56]} 31. f4 {[%clk 0:00:03]}  gxf3 {[%clk 0:00:53]} 32. Rc7 {[%clk 0:00:02]}  f2+ {[%clk 0:00:54]} 33. Qxf2 {[%clk 0:00:02]}  Qd5 {[%clk 0:00:49]} 34. Rxe7 {[%clk 0:00:03]}  Be4 {[%clk 0:00:39]} 35. Bxb4 {[%clk 0:00:02]}  a5 {[%clk 0:00:38]} 36. Ba3 {[%clk 0:00:02]}  Ng6 {[%clk 0:00:38]} 37. Re8+ {[%clk 0:00:03]}  Kf7 {[%clk 0:00:38]} 38. Rc8 {[%clk 0:00:03]}  e5 {[%clk 0:00:34]} 39. Rc7+ {[%clk 0:00:04]}  Kg8 {[%clk 0:00:30]} 40. Rc8+ {[%clk 0:00:04]}  Kg7 {[%clk 0:00:31]} 41. Rc7+ {[%clk 0:00:04]}  Kh6 {[%clk 0:00:31]} 42. Qd2+ {[%clk 0:00:04]}  f4 {[%clk 0:00:31]} 43. Rc5 {[%clk 0:00:03]}  Qd7 {[%clk 0:00:26]} 44. gxf4 {[%clk 0:00:02]}  Qg4+ {[%clk 0:00:26]} 45. Kf1 {[%clk 0:00:02]}  Nxf4 {[%clk 0:00:20]} 46. Rc6+ {[%clk 0:00:02]}  Bxc6 {[%clk 0:00:20]} 47. Bf8+ {[%clk 0:00:02]}  Kh5 {[%clk 0:00:19]} 48. Qf2 {[%clk 0:00:03]}  Bb5+ {[%clk 0:00:18]} 49. Ke1 {[%clk 0:00:03]}  Nd3+ {[%clk 0:00:19]} 50. Kd2 {[%clk 0:00:02]}  Nxf2 {[%clk 0:00:19]} 0-1


[Site "https://www.chess.com"]

[Event "Titled Tuesday Blitz May 30 Early 2023"]
[White "Weishaeutel, Moritz"]
[Black "Real_taiatai"]
[WhiteFideId "12967300"]
[WhiteElo "2301"]
[BlackElo "2378"]
[Result "1/2-1/2"]
[Round "01"]
[TimeControl "180+2"]
[Date "2023.05.30"]
[WhiteClock "0:00:04"]
[BlackClock "0:00:06"]

1. e4 {[%clk 0:02:59]}  c5 {[%clk 0:02:57]} 2. d4 {[%clk 0:02:59]}  cxd4 {[%clk 0:02:57]} 3. c3 {[%clk 0:03:00]}  d5 {[%clk 0:02:54]} 4. exd5 {[%clk 0:02:58]}  Qxd5 {[%clk 0:02:54]} 5. cxd4 {[%clk 0:02:58]}  Nc6 {[%clk 0:02:54]} 6. Nf3 {[%clk 0:02:59]}  e6 {[%clk 0:02:52]} 7. Nc3 {[%clk 0:02:59]}  Qd8 {[%clk 0:02:52]} 8. Bd3 {[%clk 0:02:54]}  Nf6 {[%clk 0:02:52]} 9. O-O {[%clk 0:02:55]}  Be7 {[%clk 0:02:52]} 10. Re1 {[%clk 0:02:50]}  O-O {[%clk 0:02:51]} 11. a3 {[%clk 0:02:50]}  b6 {[%clk 0:02:43]} 12. Bc2 {[%clk 0:02:48]}  Bb7 {[%clk 0:02:42]} 13. Bg5 {[%clk 0:02:48]}  Rc8 {[%clk 0:02:34]} 14. Qd3 {[%clk 0:02:47]}  g6 {[%clk 0:02:34]} 15. Rad1 {[%clk 0:02:45]}  Nd5 {[%clk 0:02:22]} 16. Bh6 {[%clk 0:02:33]}  Re8 {[%clk 0:02:21]} 17. Ne4 {[%clk 0:02:31]}  Ncb4 {[%clk 0:02:11]} 18. axb4 {[%clk 0:02:30]}  Nxb4 {[%clk 0:02:12]} 19. Qd2 {[%clk 0:02:21]}  Rxc2 {[%clk 0:02:00]} 20. Qf4 {[%clk 0:02:21]}  Nd5 {[%clk 0:02:00]} 21. Qe5 {[%clk 0:02:17]}  Bf6 {[%clk 0:01:58]} 22. Qg3 {[%clk 0:02:11]}  Bg7 {[%clk 0:01:56]} 23. Bg5 {[%clk 0:01:58]}  Qb8 {[%clk 0:01:51]} 24. Qh4 {[%clk 0:01:49]}  f5 {[%clk 0:01:24]} 25. Ned2 {[%clk 0:01:22]}  Qd6 {[%clk 0:01:06]} 26. Ne5 {[%clk 0:01:19]}  Qb4 {[%clk 0:00:56]} 27. Ndf3 {[%clk 0:01:11]}  Rxb2 {[%clk 0:00:48]} 28. Bc1 {[%clk 0:00:51]}  Rc2 {[%clk 0:00:40]} 29. Ng5 {[%clk 0:00:51]}  Nf6 {[%clk 0:00:38]} 30. Nd7 {[%clk 0:00:43]}  Nh5 {[%clk 0:00:20]} 31. Nxe6 {[%clk 0:00:30]}  Qe7 {[%clk 0:00:15]} 32. Bg5 {[%clk 0:00:20]}  Qxd7 {[%clk 0:00:15]} 33. Nxg7 {[%clk 0:00:16]}  Rxe1+ {[%clk 0:00:15]} 34. Rxe1 {[%clk 0:00:17]}  Nxg7 {[%clk 0:00:15]} 35. Re7 {[%clk 0:00:12]}  Qd5 {[%clk 0:00:16]} 36. f3 {[%clk 0:00:08]}  Ra2 {[%clk 0:00:12]} 37. Bf6 {[%clk 0:00:07]}  Ra1+ {[%clk 0:00:11]} 38. Kf2 {[%clk 0:00:07]}  Ra2+ {[%clk 0:00:12]} 39. Kg1 {[%clk 0:00:05]}  Rxg2+ {[%clk 0:00:12]} 40. Kh1 {[%clk 0:00:05]}  Nh5 {[%clk 0:00:06]} 41. Be5 {[%clk 0:00:02]}  Rg5 {[%clk 0:00:05]} 42. Qxg5 {[%clk 0:00:01]}  Qxf3+ {[%clk 0:00:05]} 43. Kg1 {[%clk 0:00:02]}  Qh1+ {[%clk 0:00:06]} 44. Kf2 {[%clk 0:00:02]}  Qf3+ {[%clk 0:00:06]} 45. Ke1 {[%clk 0:00:01]}  Qe4+ {[%clk 0:00:07]} 46. Kd1 {[%clk 0:00:02]}  Qd3+ {[%clk 0:00:06]} 47. Kc1 {[%clk 0:00:02]}  Qc3+ {[%clk 0:00:07]} 48. Kb1 {[%clk 0:00:03]}  Be4+ {[%clk 0:00:06]} 49. Ka2 {[%clk 0:00:03]}  Bd5+ {[%clk 0:00:07]} 50. Kb1 {[%clk 0:00:03]}  Be4+ {[%clk 0:00:07]} 51. Ka2 {[%clk 0:00:04]}  Bd5+ {[%clk 0:00:05]} 52. Kb1 {[%clk 0:00:04]}  Qb3+ {[%clk 0:00:06]} 53. Kc1 {[%clk 0:00:04]}  Qc3+ {[%clk 0:00:06]} 54. Kb1 {[%clk 0:00:04]} 1/2-1/2


[Site "https://www.chess.com"]